fUST/lending_fUST_20250407
["ID","MTS","AMOUNT","RATE_DAILY","PERIOD"]
[357320861,1744006244657,-500.0,0.00038356,7]
[357320862,1744006244667,-500.0,0.00038356,7]
[357320863,1744006244676,-500.0,0.00038356,7]
[357320864,1744006244686,-500.0,0.00038356,7]
[357320865,1744006244696,-500.0,0.00038356,7]
[357320866,1744006244706,-500.0,0.00038356,7]
[357320867,1744006244716,-500.0,0.00038356,7]
[357320868,1744006244729,-941.44,0.00038356,7]
[357320869,1744006244738,-229.22145817,0.00038356,7]
[357320870,1744006244748,-151.0,0.00038356,14]
[357320871,1744006244758,-500.0,0.00038356,7]
[357320872,1744006244768,-500.0,0.00038356,7]
[357320873,1744006244777,-151.0,0.00038356,14]
[357320874,1744006244787,-500.0,0.00038356,7]
[357320875,1744006244797,-151.0,0.00038356,14]
[357320876,1744006244808,-151.0,0.00038356,14]
[357320877,1744006244818,-151.0,0.00038356,14]
[357320878,1744006244828,-151.0,0.00038356,14]
[357320879,1744006244838,-500.0,0.00038356,7]
[357320881,1744006244847,-1227.297687,0.00038356,2]
[357320883,1744006244856,-500.0,0.00038356,7]
[357320885,1744006244866,-1227.297687,0.00038356,2]
[357320886,1744006244875,-151.0,0.00038356,14]
[357320887,1744006244885,-1227.297687,0.00038356,2]
[357320888,1744006244894,-268.499647,0.00038356,14]
[357320890,1744006244903,-1227.297687,0.00038356,2]
[357320892,1744006244912,-1227.297687,0.00038356,2]
[357320894,1744006244922,-1227.297687,0.00038356,2]
[357320895,1744006244931,-500.0,0.00038356,7]
[357320897,1744006244940,-937.22,0.00038356,7]
[357320899,1744006244950,-1227.297687,0.00038356,2]
[357320901,1744006244959,-1227.297687,0.00038356,2]
[357320903,1744006244969,-1227.297687,0.00038356,2]
[357320904,1744006244978,-1227.297687,0.00038356,2]
[357320906,1744006244988,-1227.297687,0.00038356,2]
[357320907,1744006244997,-1227.297687,0.00038356,2]
[357320909,1744006245006,-500.0,0.00038356,7]
[357320911,1744006245016,-1249.6,0.00038356,7]
[357320912,1744006245025,-500.0,0.00038356,7]
[357320913,1744006245035,-1249.6,0.00038356,7]
[357320914,1744006245044,-1249.6,0.00038356,7]
[357320915,1744006245053,-1249.6,0.00038356,7]
[357320916,1744006245063,-1249.6,0.00038356,7]
[357320917,1744006245072,-1249.6,0.00038356,7]
[357320918,1744006245082,-1249.6,0.00038356,7]
[357320919,1744006245092,-847.42,0.00038356,7]
[357320920,1744006245101,-500.0,0.00038356,7]
[357320921,1744006245110,-1249.6,0.00038356,7]
[357320922,1744006245120,-500.0,0.00038356,7]
[357320923,1744006245129,-1249.6,0.00038356,7]
[357320924,1744006245139,-1249.6,0.00038356,7]
[357320925,1744006245148,-1249.6,0.00038356,7]
[357320926,1744006245157,-1249.6,0.00038356,7]
[357320927,1744006245167,-1249.6,0.00038356,7]
[357320928,1744006245176,-1249.6,0.00038356,7]
[357320929,1744006245186,-500.0,0.00038356,7]
[357320930,1744006245195,-1249.6,0.00038356,7]
[357320931,1744006245204,-1249.6,0.00038356,7]
[357320932,1744006245215,-1249.6,0.00038356,7]
[357320933,1744006245225,-1249.6,0.00038356,7]
[357320934,1744006245234,-1249.6,0.00038356,7]
[357320935,1744006245244,-1249.6,0.00038356,7]
[357320936,1744006245253,-1249.6,0.00038356,7]
[357320937,1744006245262,-1249.6,0.00038356,7]
[357320938,1744006245271,-1249.6,0.00038356,7]
[357320939,1744006245280,-1249.79644348,0.00038356,7]
[357320940,1744006245290,-556.53,0.00038356,7]
[357320941,1744006245300,-500.0,0.00038356,7]
[357320942,1744006245309,-259.286885,0.00038356,14]
[357320943,1744006245320,-259.286885,0.00038356,14]
[357320944,1744006245333,-259.286885,0.00038356,14]
[357320945,1744006245343,-259.286885,0.00038356,14]
[357320946,1744006245353,-259.286885,0.00038356,14]
[357320947,1744006245363,-582.18,0.00038356,7]
[357320948,1744006245373,-259.286885,0.00038356,14]
[357320949,1744006245382,-151.0,0.00038356,14]
[357320950,1744006245392,-151.0,0.00038356,14]
[357320951,1744006245403,-151.0,0.00038356,14]
[357320952,1744006245413,-151.0,0.00038356,14]
[357320953,1744006245422,-151.0,0.00038356,14]
[357320954,1744006245431,-259.286885,0.00038356,14]
[357320955,1744006245441,-151.0,0.00038356,14]
[357320956,1744006245451,-259.286885,0.00038356,14]
[357320957,1744006245461,-259.286885,0.00038356,14]
[357320958,1744006245471,-500.0,0.00038356,7]
[357320959,1744006245481,-259.286885,0.00038356,14]
[357320960,1744006245491,-259.286885,0.00038356,14]
[357320961,1744006245501,-151.0,0.00038356,14]
[357320962,1744006245510,-259.286885,0.00038356,14]
[357320963,1744006245520,-151.0,0.00038356,14]
[357320964,1744006245530,-500.0,0.00038356,7]
[357320965,1744006245754,-151.0,0.00038356,14]
[357320966,1744006245787,-151.0,0.00038356,14]
[357320967,1744006245797,-151.0,0.00038356,14]
[357320968,1744006245807,-151.0,0.00038356,14]
[357320969,1744006245817,-500.0,0.00038356,7]
[357320970,1744006245827,-500.0,0.00038356,7]
[357320971,1744006245837,-500.0,0.00038356,7]
[357320972,1744006245846,-661.61,0.00038356,7]
[357320973,1744006245856,-500.0,0.00038356,7]
[357320974,1744006245866,-500.0,0.00038356,7]
[357320975,1744006245875,-1549.41,0.00038356,7]
[357320976,1744006245885,-500.0,0.00038356,7]
[357320977,1744006245895,-500.0,0.00038356,7]
[357320978,1744006245905,-151.0,0.00038356,14]
[357320979,1744006245915,-151.0,0.00038356,14]
[357320980,1744006245925,-500.0,0.00038356,7]
[357320981,1744006245934,-151.0,0.00038356,14]
[357320982,1744006245944,-1524.19,0.00038356,7]
[357320983,1744006245954,-151.0,0.00038356,14]
[357320984,1744006245964,-151.0,0.00038356,14]
[357320985,1744006245974,-151.0,0.00038356,14]
[357320986,1744006245983,-500.0,0.00038356,7]
[357320987,1744006245993,-151.0,0.00038356,14]
[357320988,1744006246002,-500.0,0.00038356,7]
[357320989,1744006246012,-500.0,0.00038356,7]
[357320990,1744006246021,-500.0,0.00038356,7]
[357320991,1744006246031,-500.0,0.00038356,7]
[357320992,1744006246040,-500.0,0.00038356,7]
[357320994,1744006246050,-509.56013152,0.00038356,7]
[357320997,1744006246060,-500.0,0.00038356,7]
[357320999,1744006246070,-500.0,0.00038356,7]
[357321000,1744006246080,-2400.64,0.00038356,2]
[357321001,1744006246089,-500.0,0.00038356,7]
[357321002,1744006246099,-500.0,0.00038356,7]
[357321003,1744006246108,-500.0,0.00038356,7]
[357321004,1744006246118,-500.0,0.00038356,7]
[357321005,1744006246128,-645.64,0.00038356,7]
[357321006,1744006246137,-1078.27,0.00038356,7]
[357321008,1744006246147,-500.0,0.00038356,7]
[357321009,1744006246156,-500.0,0.00038356,7]
[357321010,1744006246165,-500.0,0.00038356,7]
[357321011,1744006246175,-500.0,0.00038356,7]
[357321012,1744006246185,-500.0,0.00038356,7]
[357321013,1744006246195,-500.0,0.00038356,7]
[357321014,1744006246204,-275.615687,0.00038356,14]
[357321015,1744006246214,-500.0,0.00038356,7]
[357321016,1744006246224,-500.0,0.00038356,7]
[357321018,1744006246233,-500.0,0.00038356,7]
[357321020,1744006246242,-500.0,0.00038356,7]
[357321022,1744006246252,-500.0,0.00038356,7]
[357321024,1744006246261,-151.0,0.00038356,14]
[357321026,1744006246270,-151.0,0.00038356,14]
[357321028,1744006246280,-500.0,0.00038356,7]
[357321030,1744006246290,-151.0,0.00038356,14]
[357321032,1744006246299,-151.0,0.00038356,14]
[357321033,1744006246308,-151.0,0.00038356,14]
[357321034,1744006246319,-151.0,0.00038356,14]
[357321035,1744006246331,-500.0,0.00038356,7]
[357321036,1744006246340,-500.0,0.00038356,7]
[357321037,1744006246350,-500.0,0.00038356,7]
[357321038,1744006246361,-500.0,0.00038356,7]
[357321039,1744006246370,-500.0,0.00038356,7]
[357321040,1744006246379,-761.6,0.00038356,7]
[357321041,1744006246388,-500.0,0.00038356,7]
[357321042,1744006246399,-3402.92,0.00038356,7]
[357321043,1744006246409,-3402.92,0.00038356,7]
[357321044,1744006246419,-3402.92,0.00038356,7]
[357321045,1744006246428,-3402.92,0.00038356,7]
[357321046,1744006246438,-3402.92,0.00038356,7]
[357321047,1744006246447,-3402.92,0.00038356,7]
[357321048,1744006246456,-3402.92,0.00038356,7]
[357321049,1744006246466,-3402.92,0.00038356,7]
[357321050,1744006246476,-3402.92,0.00038356,7]
[357321051,1744006246487,-3402.92,0.00038356,7]
[357321052,1744006246496,-500.0,0.00038356,7]
[357321053,1744006246506,-3402.92,0.00038356,7]
[357321054,1744006246515,-3402.92,0.00038356,7]
[357321055,1744006246524,-3402.92,0.00038356,7]
[357321056,1744006246534,-3402.92,0.00038356,7]
[357321057,1744006246544,-3402.92,0.00038356,7]
[357321058,1744006246553,-3402.92,0.00038356,7]
[357321059,1744006246563,-3402.92,0.00038356,7]
[357321060,1744006246577,-3402.92,0.00038356,7]
[357321061,1744006246588,-500.0,0.00038356,7]
[357321062,1744006246597,-3402.92,0.00038356,7]
[357321063,1744006246606,-3402.92,0.00038356,7]
[357321064,1744006246616,-3402.92,0.00038356,7]
[357321065,1744006246626,-3402.92,0.00038356,7]
[357321066,1744006246637,-500.0,0.00038356,7]
[357321067,1744006246647,-3402.92,0.00038356,7]
[357321068,1744006246657,-3403.03599709,0.00038356,7]
[357321069,1744006246667,-500.0,0.00038356,7]
[357321070,1744006246677,-330.02786733,0.00038356,7]
[357321071,1744006246686,-505.25366765,0.00038356,7]
[357321072,1744006246696,-500.0,0.00038356,7]
[357321073,1744006246709,-589.79,0.00038356,7]
[357321074,1744006246719,-906.334305,0.00038356,14]
[357321075,1744006246729,-906.334305,0.00038356,14]
[357321076,1744006246738,-906.334305,0.00038356,14]
[357321077,1744006246748,-906.334305,0.00038356,14]
[357321078,1744006246758,-906.334305,0.00038356,14]
[357321079,1744006246769,-906.334305,0.00038356,14]
[357321080,1744006246779,-500.0,0.00038356,7]
[357321081,1744006246789,-906.334305,0.00038356,14]
[357321082,1744006246800,-906.334305,0.00038356,14]
[357321083,1744006246810,-906.334305,0.00038356,14]
[357321085,1744006246821,-906.334305,0.00038356,14]
[357321087,1744006246835,-906.334305,0.00038356,14]
[357321089,1744006246846,-906.334305,0.00038356,14]
[357321091,1744006246856,-204.626488,0.00038356,14]
[357321092,1744006246867,-204.626488,0.00038356,14]
[357321093,1744006246877,-204.626488,0.00038356,14]
[357321094,1744006246888,-204.626488,0.00038356,14]
[357321095,1744006246898,-204.626488,0.00038356,14]
[357321096,1744006246908,-204.626488,0.00038356,14]
[357321097,1744006246918,-204.626488,0.00038356,14]
[357321098,1744006246928,-500.0,0.00038356,7]
[357321099,1744006246938,-500.0,0.00038356,7]
[357321100,1744006246948,-500.0,0.00038356,7]
[357321101,1744006246958,-204.626488,0.00038356,14]
[357321102,1744006246967,-500.0,0.00038356,7]
[357321103,1744006246977,-204.626488,0.00038356,14]
[357321104,1744006246986,-204.626488,0.00038356,14]
[357321105,1744006246996,-500.0,0.00038356,7]
[357321106,1744006247005,-204.626488,0.00038356,14]
[357321107,1744006247015,-204.626488,0.00038356,14]
[357321108,1744006247025,-500.0,0.00038356,7]
[357321109,1744006247035,-204.626488,0.00038356,14]
[357321110,1744006247044,-500.0,0.00038356,7]
[357321111,1744006247054,-204.626488,0.00038356,14]
[357321112,1744006247064,-423.07709117,0.00038356,7]
[357321113,1744006247074,-500.0,0.00038356,7]
[357321114,1744006247087,-1956.17,0.00038356,7]
[357321115,1744006247096,-561.77574569,0.00038356,7]
[357321116,1744006247106,-500.0,0.00038356,7]
[357321117,1744006247116,-548.39136356,0.00038356,7]
[357321118,1744006247126,-500.0,0.00038356,7]
[357321119,1744006247136,-500.0,0.00038356,7]
[357321120,1744006247146,-500.0,0.00038356,7]
[357321121,1744006247155,-541.59,0.00038356,7]
[357321122,1744006247165,-500.0,0.00038356,7]
[357321123,1744006247175,-500.0,0.00038356,7]
[357321124,1744006247185,-500.0,0.00038356,7]
[357321125,1744006247195,-869.94,0.00038356,7]
[357321126,1744006247204,-500.0,0.00038356,7]
[357321127,1744006247214,-1194.71,0.00038356,7]
[357321128,1744006247224,-500.0,0.00038356,7]
[357321129,1744006247234,-500.0,0.00038356,7]
[357321130,1744006247244,-500.0,0.00038356,7]
[357321131,1744006247253,-500.0,0.00038356,7]
[357321132,1744006247263,-500.0,0.00038356,7]
[357321133,1744006247272,-2005.32,0.00038356,7]
[357321134,1744006247281,-500.0,0.00038356,7]
[357321135,1744006247291,-3996.3,0.00038356,7]
[357321137,1744006247301,-500.0,0.00038356,7]
[357321139,1744006247310,-1391.88,0.00038356,7]
[357321141,1744006247323,-500.0,0.00038356,7]
[357321142,1744006247334,-500.0,0.00038356,7]
[357321144,1744006247343,-500.0,0.00038356,7]
[357321147,1744006247355,-500.0,0.00038356,7]
[357321149,1744006247364,-1928.47,0.00038356,7]
[357321150,1744006247374,-500.0,0.00038356,7]
[357321152,1744006247383,-500.0,0.00038356,7]
[357321154,1744006247394,-500.0,0.00038356,7]
[357321157,1744006247404,-5156.2,0.00038356,7]
[357321159,1744006247414,-151.0,0.00038356,14]
[357321160,1744006247424,-151.0,0.00038356,14]
[357321163,1744006247434,-1669.02,0.00038356,7]
[357321165,1744006247443,-151.0,0.00038356,14]
[357321166,1744006247453,-5644.46,0.00038356,7]
[357321168,1744006247462,-194.001974,0.00038356,14]
[357321171,1744006247472,-500.0,0.00038356,7]
[357321173,1744006247482,-2496.81,0.00038356,7]
[357321175,1744006247492,-500.0,0.00038356,7]
[357321177,1744006247503,-4793.6819528,0.00038356,7]
[357321216,1744006247933,-157.797225,0.00038,14]
[357321217,1744006247943,-157.797225,0.00038346,14]
[357321218,1744006247954,-3036.4580472,0.00038356,7]
[357321219,1744006247964,-151.0,0.00038356,14]
[357321220,1744006247973,-500.0,0.00038356,7]
[357321221,1744006247982,-151.0,0.00038356,14]
[357321222,1744006247992,-5412.09,0.00038356,7]
[357321223,1744006248001,-151.0,0.00038356,14]
[357321224,1744006248011,-151.0,0.00038356,14]
[357321225,1744006248020,-500.0,0.00038356,7]
[357321226,1744006248030,-151.0,0.00038356,14]
[357321227,1744006248039,-151.0,0.00038356,14]
[357321228,1744006248049,-500.0,0.00038356,7]
[357321229,1744006248106,-493.83710314,0.00038356,7]
[357321230,1744006248116,-151.0,0.00038356,14]
[357321231,1744006248126,-151.0,0.00038356,14]
[357321232,1744006248136,-500.0,0.00038356,7]
[357321233,1744006248146,-500.0,0.00038356,7]
[357321234,1744006248157,-151.0,0.00038356,14]
[357321235,1744006248167,-151.0,0.00038356,14]
[357321236,1744006248177,-151.0,0.00038356,14]
[357321237,1744006248186,-933.13,0.00038356,7]
[357321238,1744006248196,-151.0,0.00038356,14]
[357321239,1744006248206,-181.265634,0.00038356,14]
[357321240,1744006248215,-695.14,0.00038356,7]
[357321241,1744006248225,-9093.65,0.00038356,7]
[357321242,1744006248235,-5572.11,0.00038356,7]
[357321243,1744006248246,-1803.7,0.00038356,7]
[357321244,1744006248256,-500.0,0.00038356,7]
[357321245,1744006248266,-500.0,0.00038356,7]
[357321246,1744006248277,-500.0,0.00038356,7]
[357321247,1744006248287,-500.0,0.00038356,7]
[357321248,1744006248297,-595.19,0.00038356,7]
[357321249,1744006248308,-500.0,0.00038356,7]
[357321250,1744006248321,-151.0,0.00038356,14]
[357321251,1744006248338,-151.0,0.00038356,14]
[357321252,1744006248348,-500.0,0.00038356,7]
[357321253,1744006248360,-151.0,0.00038356,14]
[357321254,1744006248371,-500.0,0.00038356,7]
[357321255,1744006248381,-500.0,0.00038356,7]
[357321256,1744006248391,-151.0,0.00038356,14]
[357321257,1744006248403,-253.984304,0.00038356,14]
[357321258,1744006248413,-1875.88,0.00038356,7]
[357321259,1744006248423,-673.56,0.00038356,7]
[357321260,1744006248433,-1427.88,0.00038356,2]
[357321261,1744006248444,-500.0,0.00038356,7]
[357321262,1744006248455,-1576.758751,0.00038356,14]
[357321263,1744006248465,-1576.758751,0.00038356,14]
[357321264,1744006248475,-1576.758751,0.00038356,14]
[357321265,1744006248486,-1576.758751,0.00038356,14]
[357321266,1744006248495,-1576.758751,0.00038356,14]
[357321267,1744006248506,-500.0,0.00038356,7]
[357321268,1744006248516,-1576.758751,0.00038356,14]
[357321269,1744006248525,-1576.758751,0.00038356,14]
[357321270,1744006248536,-500.0,0.00038356,7]
[357321271,1744006248546,-1576.758751,0.00038356,14]
[357321272,1744006248555,-1576.758751,0.00038356,14]
[357321273,1744006248565,-500.0,0.00038356,7]
[357321274,1744006248575,-500.0,0.00038356,7]
[357321275,1744006248590,-1576.758751,0.00038356,14]
[357321276,1744006248600,-500.0,0.00038356,7]
[357321277,1744006248610,-1576.758751,0.00038356,14]
[357321278,1744006248620,-1445.59,0.00038356,7]
[357321279,1744006248630,-1576.758751,0.00038356,14]
[357321280,1744006248640,-500.0,0.00038356,7]
[357321281,1744006248650,-983.41843452,0.00038356,14]
[357321282,1744006249191,-401.0,0.00036711,2]
[357321283,1744006249201,-151.0,0.00038,14]
[357321284,1744006249211,-151.0,0.00038,14]
[357321285,1744006249220,-93.24064982,0.00038,14]
[357323120,1744006513838,1500.0,0.00022,30]
[357323367,1744007287889,-500.0,0.00019977,2]
[357323369,1744007296688,1397.5184078,0.00022,10]
[357323379,1744007326070,-261.694492,0.000175,4]
[357323386,1744007337050,-155.0,0.00016,2]
[357323387,1744007345783,-52.5677397,0.00016,2]
[357323388,1744007345806,-277.6304593,0.000175,4]
[357323396,1744007405969,-837.311996,0.000175,4]
[357323397,1744007406001,-300.0,0.00019976,2]
[357323398,1744007406026,-734.683304,0.00019977,2]
[357323419,1744007433627,-7660.39256974,0.00019977,2]
[357323421,1744007433641,-1755.7574,0.00019977,2]
[357323423,1744007433653,-203.21921864,0.00019977,2]
[357323425,1744007433666,-420.0,0.00021752,2]
[357323426,1744007433676,-347.71485267,0.00022,2]
[357323428,1744007433686,-657.30580496,0.00022,2]
[357323430,1744007433696,-423.68864978,0.00022,2]
[357323431,1744007433706,-290.56485597,0.000221,2]
[357323433,1744007433715,-202.76778898,0.00023,2]
[357323435,1744007433725,-199.18593029,0.00023079,2]
[357323437,1744007433736,-315.55289871,0.000234,4]
[357323439,1744007433783,-893.20588121,0.000234,4]
[357323440,1744007433792,-628.45411879,0.000234,4]
[357323441,1744007433804,-382.5,0.000234,4]
[357323521,1744007438812,-197.80466084,0.000234,4]
[357323524,1744007438822,-1208.75877963,0.00023624,4]
[357323527,1744007438831,-346.0,0.00023686,2]
[357323530,1744007438840,-1208.75877963,0.00024486,5]
[357323533,1744007438850,-1414.73548812,0.00025047,2]
[357323536,1744007438862,-1570.94432618,0.00025047,2]
[357323539,1744007438871,-500.0,0.00025176,2]
[357323542,1744007438881,-1208.75877963,0.00025348,6]
[357323545,1744007438891,-250.0,0.00025657,2]
[357323547,1744007438901,-5121.28359464,0.00025666,2]
[357323550,1744007438912,-210.87775911,0.00025666,2]
[357323553,1744007438922,-1022.68278538,0.000259,2]
[357323555,1744007438931,-4799.0,0.00026,2]
[357323557,1744007438940,-2000.0,0.00026,3]
[357323559,1744007438950,-2000.0,0.00026,15]
[357323561,1744007438960,-2000.0,0.00026,15]
[357323563,1744007438969,-500.0,0.00026038,2]
[357323565,1744007438978,-500.0,0.00026042,2]
[357323567,1744007438988,-1208.75877963,0.0002621,6]
[357323569,1744007439000,-500.0,0.00026342,2]
[357323572,1744007439010,-500.0,0.00026549,2]
[357323574,1744007439019,-271.3567414,0.00026598,2]
[357323576,1744007439028,-500.0,0.00026866,2]
[357323577,1744007439038,-500.0,0.00027061,2]
[357323580,1744007439047,-1208.75877963,0.00027072,7]
[357323582,1744007439057,-500.0,0.00027098,2]
[357323583,1744007439066,-152.27,0.00027397,2]
[357323585,1744007439076,-500.0,0.00027397,5]
[357323587,1744007439085,-500.0,0.00027574,2]
[357323589,1744007439094,-1208.75877963,0.00027934,7]
[357323591,1744007439104,-920.01232607,0.00027985,2]
[357323593,1744007439113,-500.0,0.00028085,2]
[357323595,1744007439122,-151.0,0.00028147,2]
[357323597,1744007439132,-422.67699758,0.00028163,2]
[357323599,1744007439141,-500.0,0.00028163,2]
[357323601,1744007439151,-500.0,0.00028163,2]
[357323603,1744007439160,-500.0,0.00028163,2]
[357323605,1744007439170,-500.0,0.00028163,2]
[357323607,1744007439179,-500.0,0.00028163,2]
[357323609,1744007439189,-500.0,0.00028163,2]
[357323611,1744007439199,-500.0,0.00028163,2]
[357323613,1744007439208,-500.0,0.00028163,2]
[357323615,1744007439217,-530.59347424,0.00028163,2]
[357323617,1744007439227,-500.0,0.00028163,2]
[357323619,1744007439236,-500.0,0.00028163,2]
[357323621,1744007439245,-500.0,0.00028163,2]
[357323623,1744007439259,-500.0,0.00028163,2]
[357323625,1744007439268,-500.0,0.00028163,2]
[357323627,1744007439278,-500.0,0.00028163,2]
[357323629,1744007439287,-500.0,0.00028163,2]
[357323631,1744007439298,-588.9463128,0.00028163,2]
[357323634,1744007439307,-500.0,0.00028163,2]
[357323636,1744007439317,-500.0,0.00028163,2]
[357323638,1744007439326,-500.0,0.00028163,2]
[357323640,1744007439335,-500.0,0.00028163,2]
[357323642,1744007439345,-500.0,0.00028163,2]
[357323644,1744007439354,-500.0,0.00028163,2]
[357323646,1744007439363,-500.0,0.00028163,2]
[357323648,1744007439373,-500.0,0.00028163,2]
[357323650,1744007439383,-22534.8421581,0.00028164,2]
[357323652,1744007439392,-500.0,0.000282,5]
[357323654,1744007439401,-502.41294083,0.000282,5]
[357323656,1744007439411,-536.46656114,0.000282,5]
[357323657,1744007439420,-500.0,0.000282,5]
[357323659,1744007439430,-500.0,0.000282,5]
[357323661,1744007439439,-500.0,0.000282,5]
[357323663,1744007439448,-500.0,0.000282,5]
[357323665,1744007439458,-500.0,0.000282,5]
[357323668,1744007439467,-500.0,0.000282,5]
[357323670,1744007439476,-501.05854735,0.000282,5]
[357323671,1744007439486,-500.0,0.000282,5]
[357323674,1744007439495,-500.0,0.000282,2]
[357323676,1744007439508,-500.0,0.00028205,2]
[357323677,1744007439518,-1208.75877963,0.00028797,8]
[357323680,1744007439527,-362.52130975,0.00028806,2]
[357323682,1744007439536,-500.0,0.00028829,2]
[357323683,1744007439545,-500.0,0.00028955,2]
[357323686,1744007439555,-153.80248374,0.00029516,2]
[357323687,1744007439564,-1208.75877963,0.00029659,8]
[357323690,1744007439574,-500.0,0.00029877,2]
[357323691,1744007439583,-535.38,0.0002989,3]
[357323693,1744007439592,-427.39555393,0.00029897,2]
[357323695,1744007439601,-5952.1770573,0.000299,3]
[357323697,1744007439611,-380.73309312,0.00029974,2]
[357323700,1744007439623,-298.83200422,0.00029974,2]
[357323702,1744007439633,-2000.0,0.0003,15]
[357323704,1744007439645,-2000.0,0.0003,15]
[357323706,1744007439656,-2000.0,0.0003,15]
[357323708,1744007439666,-2000.0,0.0003,15]
[357323710,1744007439675,-2000.0,0.0003,15]
[357323712,1744007439686,-1208.75877963,0.00030521,9]
[357323714,1744007439696,-920.01232604,0.00030614,2]
[357323716,1744007439705,-1740.90189542,0.00030741,2]
[357323718,1744007439715,-500.0,0.00030776,7]
[357323720,1744007439726,-200.0,0.0003091,2]
[357323722,1744007439735,-178.46,0.00030918,3]
[357323724,1744007439745,-12623.8403618,0.00030928,2]
[357323726,1744007439757,-1208.75877963,0.00031383,9]
[357323728,1744007439766,-153.0,0.00031477,2]
[357323730,1744007439775,-153.0,0.00031477,2]
[357323732,1744007439784,-153.0,0.00031477,2]
[357323734,1744007439794,-153.0,0.00031477,2]
[357323736,1744007439803,-153.0,0.00031477,2]
[357323738,1744007439813,-153.0,0.00031492,2]
[357323740,1744007439823,-153.0,0.00031492,2]
[357323742,1744007439833,-153.0,0.00031492,2]
[357323744,1744007439843,-153.0,0.00031492,2]
[357323746,1744007439852,-153.0,0.00031492,2]
[357323748,1744007439862,-2000.0,0.00032,15]
[357323750,1744007439871,-1208.75877963,0.00032245,10]
[357323752,1744007439881,-356.92,0.00032288,3]
[357323754,1744007439891,-2000.0,0.000325,15]
[357323756,1744007439901,-2000.0,0.000325,15]
[357323758,1744007439915,-2000.0,0.000325,15]
[357323760,1744007439925,-2000.0,0.000325,15]
[357323762,1744007439936,-2000.0,0.000325,15]
[357323764,1744007439946,-1000.0,0.00032877,5]
[357323766,1744007439955,-225.475639,0.00032906,2]
[357323768,1744007439965,-1208.75877963,0.00033107,11]
[357323770,1744007439974,-920.01232604,0.00033244,2]
[357323772,1744007439984,-1000.0,0.00033679,5]
[357323774,1744007439993,-1000.0,0.00033679,5]
[357323776,1744007440008,-666.06220602,0.00033679,5]
[357323778,1744007440020,-1208.75877963,0.00033969,11]
[357323781,1744007440031,-500.0,0.00034681,7]
[357323782,1744007440041,-1208.75877963,0.00034831,12]
[357323784,1744007440051,-2000.0,0.00035,15]
[357323787,1744007440061,-2000.0,0.00035,15]
[357323789,1744007440071,-2000.0,0.00035,15]
[357323791,1744007440081,-500.0,0.00035539,7]
[357323793,1744007440092,-1208.75877963,0.00035693,12]
[357323795,1744007440102,-920.01232604,0.00035873,2]
[357323796,1744007440111,-688.251929,0.0003589,2]
[357323799,1744007440123,-1068.36248956,0.000362,98]
[357323801,1744007440132,-1068.36248955,0.000362,98]
[357323803,1744007440142,-1068.36248955,0.000362,98]
[357323805,1744007440152,-1208.75877963,0.00036555,13]
[357323807,1744007440162,-543.0,0.00036721,2]
[357323810,1744007440171,-2255.0,0.00036721,2]
[357323812,1744007440181,-401.0,0.00036721,2]